[Event "Open Nuevo Centro. Jornada 1"]
[Site "Chess.com"]
[Date "2020.06.19"]
[Round "3"]
[White "Sanchis Bon, Sergi"]
[Black "Salvador Buiza, Victor"]
[Result "0-1"]
[WhiteElo "990"]
[BlackElo "1520"]
[TimeControl "180+2"]
[EndTime "11:00:58 PDT"]
[Termination "Victoria de TERROROSCURO666 por tiempo"]

1. e4 {[%clk 0:03:01.9]} 1... e6 {[%clk 0:02:58.2]} 2. e5 {[%clk 0:03:00]} 2...
d5 {[%clk 0:02:59.6]} 3. exd6 {[%clk 0:02:59.3]} 3... Bxd6 {[%clk 0:02:58.7]} 4.
Nf3 {[%clk 0:02:56.8]} 4... Nf6 {[%clk 0:02:58.5]} 5. Nc3 {[%clk 0:02:57.1]}
5... O-O {[%clk 0:02:58.4]} 6. g3 {[%clk 0:02:57]} 6... Nd5 {[%clk 0:02:58.7]}
7. Bg2 {[%clk 0:02:57.6]} 7... Nc6 {[%clk 0:02:57.6]} 8. Nxd5 {[%clk 0:02:53.5]}
8... exd5 {[%clk 0:02:59.5]} 9. b3 {[%clk 0:02:48.3]} 9... Bg4 {[%clk
0:02:51.1]} 10. O-O {[%clk 0:02:38.6]} 10... Be5 {[%clk 0:02:43.9]} 11. Rb1
{[%clk 0:02:30.1]} 11... Nd4 {[%clk 0:02:35.5]} 12. h3 {[%clk 0:02:16.6]} 12...
Nxf3+ {[%clk 0:02:32.2]} 13. Bxf3 {[%clk 0:02:10.8]} 13... Bxh3 {[%clk
0:02:32.5]} 14. Re1 {[%clk 0:02:07.5]} 14... Re8 {[%clk 0:02:31.1]} 15. Bg4
{[%clk 0:01:54.2]} 15... Bxg4 {[%clk 0:02:29.2]} 16. Qxg4 {[%clk 0:01:52.5]}
16... Qd6 {[%clk 0:02:28.7]} 17. f4 {[%clk 0:01:22.8]} 17... Bd4+ {[%clk
0:02:25.5]} 18. Kf1 {[%clk 0:01:11.4]} 18... Rxe1+ {[%clk 0:02:24.1]} 19. Kxe1
{[%clk 0:01:10.6]} 19... Qc5 {[%clk 0:02:21.8]} 20. c3 {[%clk 0:00:54.5]} 20...
Re8+ {[%clk 0:02:20.3]} 21. Kd1 {[%clk 0:00:51]} 21... Bf2 {[%clk 0:02:07.3]}
22. Kc2 {[%clk 0:00:34.4]} 22... d4 {[%clk 0:02:06]} 23. b4 {[%clk 0:00:12.3]}
23... Qc4 {[%clk 0:02:01.5]} 24. Rb3 {[%clk 0:00:06.8]} 24... dxc3 {[%clk
0:01:54.3]} 0

[Event "Open Nuevo Centro. Jornada 1"]
[Site "Chess.com"]
[Date "2020.06.19"]
[Round "3"]
[White "Garcia, Jhoel"]
[Black "Amor�s P�rez, Manuel David"]
[Result "1-0"]
[WhiteElo "2323"]
[BlackElo "1641"]
[TimeControl "180+2"]
[EndTime "11:01:03 PDT"]
[Termination "Victoria de shoels por abandono"]

1. b3 {[%clk 0:03:01.9]} 1... Nc6 {[%clk 0:02:58.3]} 2. Bb2 {[%clk 0:03:02.8]}
2... e5 {[%clk 0:02:59.6]} 3. e3 {[%clk 0:03:03.5]} 3... d5 {[%clk 0:03:00.5]}
4. d4 {[%clk 0:03:03.3]} 4... exd4 {[%clk 0:03:01.4]} 5. exd4 {[%clk 0:03:04.3]}
5... Bf5 {[%clk 0:03:02]} 6. Nf3 {[%clk 0:03:04.3]} 6... Nf6 {[%clk 0:03:03.3]}
7. Bb5 {[%clk 0:03:05.6]} 7... Qd6 {[%clk 0:03:03.5]} 8. O-O {[%clk 0:03:04.9]}
8... O-O-O {[%clk 0:03:03.6]} 9. Ne5 {[%clk 0:02:59.2]} 9... Be6 {[%clk
0:02:48.3]} 10. Ba3 {[%clk 0:02:50.7]} 10... Nb4 {[%clk 0:02:31.9]} 11. c3
{[%clk 0:02:40.1]} 11... Qb6 {[%clk 0:02:32.3]} 12. Be2 {[%clk 0:02:41]} 12...
Nc6 {[%clk 0:02:31.5]} 13. Bb2 {[%clk 0:02:40.5]} 13... Nxe5 {[%clk 0:02:30.8]}
14. dxe5 {[%clk 0:02:41.4]} 14... Ne4 {[%clk 0:02:31.8]} 15. b4 {[%clk
0:02:38.7]} 15... c6 {[%clk 0:02:23.3]} 16. Nd2 {[%clk 0:02:38.5]} 16... Nxd2
{[%clk 0:02:23.9]} 17. Qxd2 {[%clk 0:02:39.8]} 17... Qc7 {[%clk 0:02:22.6]} 18.
f4 {[%clk 0:02:40.5]} 18... f6 {[%clk 0:02:23.2]} 19. f5 {[%clk 0:02:41]} 19...
Bd7 {[%clk 0:02:20.9]} 20. e6 {[%clk 0:02:42.2]} 20... Be8 {[%clk 0:02:22.4]}
21. g3 {[%clk 0:02:40.8]} 21... Bd6 {[%clk 0:02:23.8]} 22. Bf3 {[%clk
0:02:40.6]} 22... g6 {[%clk 0:02:25.1]} 23. Qc2 {[%clk 0:02:32.9]} 23... gxf5
{[%clk 0:02:25.7]} 24. Qxf5 {[%clk 0:02:30.6]} 24... Bg6 {[%clk 0:02:27]} 25.
Qxf6 {[%clk 0:02:14.1]} 25... Bxg3 {[%clk 0:02:26.8]} 26. hxg3 {[%clk
0:02:12.4]} 26... Qxg3+ {[%clk 0:02:27.7]} 27. Bg2 {[%clk 0:02:13.8]} 27... Be4
{[%clk 0:02:25.5]} 28. Rf3 {[%clk 0:01:49.2]} 28... Bxf3 {[%clk 0:02:24.5]} 29.
Qxf3 {[%clk 0:01:49.9]} 29... Rhg8 {[%clk 0:01:48.1]} 30. Qxg3 {[%clk
0:01:44.4]} 30... Rxg3 {[%clk 0:01:48.3]} 31. Kh2 {[%clk 0:01:45.4]} 31... Rdg8
{[%clk 0:01:47.8]} 32. Bh3 {[%clk 0:01:46.8]} 32... Kc7 {[%clk 0:01:47.2]} 33.
c4 {[%clk 0:01:46.3]} 33... Rxh3+ {[%clk 0:01:36.5]} 34. Kxh3 {[%clk 0:01:46.3]}
34... dxc4 {[%clk 0:01:37.9]} 35. Be5+ {[%clk 0:01:46]} 35... Kd8 {[%clk
0:01:39]} 36. Bd6 {[%clk 0:01:47.1]} 36... Rg6 {[%clk 0:01:39.2]} 37. Re1 {[%clk
0:01:46.9]} 37... b5 {[%clk 0:01:39.7]} 38. Bc5 {[%clk 0:01:46.7]} 38... a6
{[%clk 0:01:40.3]} 39. e7+ {[%clk 0:01:47.8]} 39... Ke8 {[%clk 0:01:41.3]} 40.
Rf1 {[%clk 0:01:49.1]} 40... Kd7 {[%clk 0:01:33]} 41. Rd1+ {[%clk 0:01:47.4]}
41... Ke8 {[%clk 0:01:15.9]} 42. Rd8+ {[%clk 0:01:48.5]} 1

[Event "Open Nuevo Centro. Jornada 1"]
[Site "Chess.com"]
[Date "2020.06.19"]
[Round "3"]
[White "Galiana Ferrer, Oscar"]
[Black "Ferrero Sanchis, Enrique"]
[Result "0-1"]
[WhiteElo "854"]
[BlackElo "1518"]
[TimeControl "180+2"]
[EndTime "11:01:10 PDT"]
[Termination "Victoria de kikeferrero por jaque mate"]

1. e4 {[%clk 0:03:01.9]} 1... d6 {[%clk 0:03:00.4]} 2. Nc3 {[%clk 0:03:01.7]}
2... g6 {[%clk 0:03:00.9]} 3. d4 {[%clk 0:03:01.3]} 3... Bg7 {[%clk 0:03:00.6]}
4. Nf3 {[%clk 0:03:02.4]} 4... Bg4 {[%clk 0:03:00.3]} 5. Bd3 {[%clk 0:03:03.2]}
5... c6 {[%clk 0:02:58.7]} 6. Be3 {[%clk 0:03:03.8]} 6... Qb6 {[%clk 0:02:55.9]}
7. O-O {[%clk 0:02:47.4]} 7... Bxf3 {[%clk 0:02:51.6]} 8. Qxf3 {[%clk
0:02:40.3]} 8... Bxd4 {[%clk 0:02:50.1]} 9. Bxd4 {[%clk 0:02:35.5]} 9... Qxd4
{[%clk 0:02:49.7]} 10. Rad1 {[%clk 0:02:25.3]} 10... Qf6 {[%clk 0:02:47.8]} 11.
Ra1 {[%clk 0:02:17.9]} 11... Qxf3 {[%clk 0:02:47.6]} 12. gxf3 {[%clk 0:02:17.7]}
12... Nd7 {[%clk 0:02:48.1]} 13. f4 {[%clk 0:02:13.5]} 13... Ngf6 {[%clk
0:02:43.6]} 14. f5 {[%clk 0:02:10.3]} 14... O-O {[%clk 0:02:41.9]} 15. fxg6
{[%clk 0:02:10.5]} 15... fxg6 {[%clk 0:02:42.3]} 16. a3 {[%clk 0:02:03.9]} 16...
Nc5 {[%clk 0:02:42.5]} 17. f3 {[%clk 0:01:58.4]} 17... Nxd3 {[%clk 0:02:42.6]}
18. cxd3 {[%clk 0:01:59]} 18... d5 {[%clk 0:02:39.5]} 19. exd5 {[%clk
0:01:59.4]} 19... Nxd5 {[%clk 0:02:39]} 20. Nxd5 {[%clk 0:01:59.8]} 20... cxd5
{[%clk 0:02:39.5]} 21. f4 {[%clk 0:02:00.5]} 21... Rf5 {[%clk 0:02:37.4]} 22. d4
{[%clk 0:01:58.9]} 22... Raf8 {[%clk 0:02:36.6]} 23. b4 {[%clk 0:01:55.6]} 23...
Rxf4 {[%clk 0:02:36.8]} 24. Rxf4 {[%clk 0:01:56.3]} 24... Rxf4 {[%clk
0:02:36.8]} 25. Rc1 {[%clk 0:01:57.1]} 25... Rxd4 {[%clk 0:02:35.8]} 26. Rc8+
{[%clk 0:01:57.3]} 26... Kf7 {[%clk 0:02:35.9]} 27. Rc7 {[%clk 0:01:58.1]} 27...
Rd3 {[%clk 0:02:34]} 28. Rxb7 {[%clk 0:01:57.8]} 28... Rxa3 {[%clk 0:02:29.2]}
29. b5 {[%clk 0:01:58.8]} 29... Rb3 {[%clk 0:02:23.4]} 30. Rxa7 {[%clk
0:01:52.4]} 30... Rxb5 {[%clk 0:02:23.5]} 31. Ra1 {[%clk 0:01:53]} 31... e5
{[%clk 0:02:23]} 32. Rf1+ {[%clk 0:01:53.2]} 32... Ke6 {[%clk 0:02:23.3]} 33.
Rf3 {[%clk 0:01:53.8]} 33... d4 {[%clk 0:02:23.1]} 34. Rf1 {[%clk 0:01:53.5]}
34... e4 {[%clk 0:02:23.6]} 35. Re1 {[%clk 0:01:54.4]} 35... Ke5 {[%clk
0:02:24]} 36. Kf2 {[%clk 0:01:54.4]} 36... Rb2+ {[%clk 0:02:23.4]} 37. Kg1
{[%clk 0:01:54.6]} 37... d3 {[%clk 0:02:23.6]} 38. Rd1 {[%clk 0:01:53]} 38...
Kd4 {[%clk 0:02:23.2]} 39. Ra1 {[%clk 0:01:52.8]} 39... e3 {[%clk 0:02:22.7]}
40. Ra4+ {[%clk 0:01:53.7]} 40... Kc3 {[%clk 0:02:23.1]} 41. Ra3+ {[%clk
0:01:54.2]} 41... Rb3 {[%clk 0:02:23.7]} 42. Ra1 {[%clk 0:01:52.8]} 42... e2
{[%clk 0:02:23.7]} 43. Rc1+ {[%clk 0:01:52.9]} 43... Kd2 {[%clk 0:02:23.1]} 44.
Ra1 {[%clk 0:01:51.3]} 44... e1=Q+ {[%clk 0:02:19.9]} 45. Rxe1 {[%clk
0:01:50.7]} 45... Kxe1 {[%clk 0:02:20.3]} 46. Kh1 {[%clk 0:01:50.8]} 46... d2
{[%clk 0:02:15]} 47. Kg2 {[%clk 0:01:51.7]} 47... d1=Q {[%clk 0:02:02.7]} 48. h3
{[%clk 0:01:51.8]} 48... Qd3 {[%clk 0:01:58.4]} 49. h4 {[%clk 0:01:52.1]} 49...
Rb2+ {[%clk 0:01:56.2]} 50. Kg1 {[%clk 0:01:52.5]} 50... Qf1# {[%clk 0:01:55.7]}
0

[Event "Open Nuevo Centro. Jornada 1"]
[Site "Chess.com"]
[Date "2020.06.19"]
[Round "3"]
[White "Fitzpatrick Dimas  , Andrew "]
[Black "Crevillen Abad, Clemente"]
[Result "0-1"]
[WhiteElo "1375"]
[BlackElo "1786"]
[TimeControl "180+2"]
[EndTime "11:01:15 PDT"]
[Termination "Victoria de Clementovich por jaque mate"]

1. e4 {[%clk 0:03:01.9]} 1... c6 {[%clk 0:02:58.6]} 2. Nf3 {[%clk 0:03:02]} 2...
d5 {[%clk 0:02:58.8]} 3. Nc3 {[%clk 0:03:00]} 3... dxe4 {[%clk 0:02:59.1]} 4.
Nxe4 {[%clk 0:03:00.5]} 4... Nf6 {[%clk 0:02:59.3]} 5. Nxf6+ {[%clk 0:02:59.5]}
5... gxf6 {[%clk 0:02:59.9]} 6. Bc4 {[%clk 0:02:56.7]} 6... Bg4 {[%clk
0:02:51.3]} 7. O-O {[%clk 0:02:55.8]} 7... Bg7 {[%clk 0:02:42.6]} 8. h3 {[%clk
0:02:54.1]} 8... Bh5 {[%clk 0:02:38.2]} 9. d3 {[%clk 0:02:44.2]} 9... Nd7 {[%clk
0:02:35.4]} 10. b3 {[%clk 0:02:37.6]} 10... Ne5 {[%clk 0:02:34.4]} 11. Bf4
{[%clk 0:02:21.2]} 11... Nxf3+ {[%clk 0:02:34.1]} 12. gxf3 {[%clk 0:02:21.6]}
12... b5 {[%clk 0:02:33.7]} 13. Bxf7+ {[%clk 0:02:15.8]} 13... Bxf7 {[%clk
0:02:33.7]} 14. Qd2 {[%clk 0:02:12]} 14... Qd5 {[%clk 0:02:30.2]} 15. Qe3 {[%clk
0:02:09.7]} 15... O-O {[%clk 0:02:22]} 16. Kg2 {[%clk 0:02:01.2]} 16... Qf5
{[%clk 0:02:13.5]} 17. Bg3 {[%clk 0:01:51.5]} 17... e5 {[%clk 0:02:12.6]} 18.
Qc5 {[%clk 0:01:39.4]} 18... Bd5 {[%clk 0:02:09.5]} 19. Qe3 {[%clk 0:01:27.3]}
19... Qg6 {[%clk 0:02:04.6]} 20. c4 {[%clk 0:01:23.5]} 20... Be6 {[%clk
0:02:02.1]} 21. cxb5 {[%clk 0:01:22.7]} 21... cxb5 {[%clk 0:01:51.8]} 22. Rad1
{[%clk 0:01:15.6]} 22... Rae8 {[%clk 0:01:45]} 23. Qxa7 {[%clk 0:01:10.5]} 23...
f5 {[%clk 0:01:44.4]} 24. Kh2 {[%clk 0:00:49.1]} 24... f4 {[%clk 0:01:44.5]} 25.
Bh4 {[%clk 0:00:48.3]} 25... Qf5 {[%clk 0:01:43.6]} 26. Kg1 {[%clk 0:00:20.5]}
26... Rf7 {[%clk 0:01:39.9]} 27. Qc5 {[%clk 0:00:16.8]} 27... Bf8 {[%clk
0:01:37.2]} 28. Qxb5 {[%clk 0:00:17]} 28... Rg7+ {[%clk 0:01:37.1]} 29. Kh1
{[%clk 0:00:16]} 29... Qxh3# {[%clk 0:01:37.7]} 0

[Event "Open Nuevo Centro. Jornada 1"]
[Site "Chess.com"]
[Date "2020.06.19"]
[Round "3"]
[White "Fern�ndez Mart�n, Berta"]
[Black "Gukasov, Artem"]
[Result "0-1"]
[WhiteElo "1005"]
[BlackElo "1565"]
[TimeControl "180+2"]
[EndTime "11:01:17 PDT"]
[Termination "Victoria de ArtemGukasov por tiempo"]

1. e4 {[%clk 0:03:01.9]} 1... e6 {[%clk 0:03:00.3]} 2. Nf3 {[%clk 0:03:01]} 2...
d5 {[%clk 0:02:59.8]} 3. exd5 {[%clk 0:02:59.5]} 3... exd5 {[%clk 0:03:01.7]} 4.
d4 {[%clk 0:02:58]} 4... Nf6 {[%clk 0:02:52.7]} 5. Be2 {[%clk 0:02:49.3]} 5...
Bd6 {[%clk 0:02:47.9]} 6. O-O {[%clk 0:02:33.9]} 6... O-O {[%clk 0:02:47.6]} 7.
b3 {[%clk 0:02:31.8]} 7... c6 {[%clk 0:02:47.1]} 8. Be3 {[%clk 0:02:06.7]} 8...
Bf5 {[%clk 0:02:44.4]} 9. c4 {[%clk 0:01:56]} 9... dxc4 {[%clk 0:02:42.7]} 10.
bxc4 {[%clk 0:01:50.6]} 10... Nbd7 {[%clk 0:02:42.6]} 11. Nc3 {[%clk 0:01:42.4]}
11... c5 {[%clk 0:02:41.7]} 12. d5 {[%clk 0:01:39.1]} 12... Qc7 {[%clk
0:02:41.1]} 13. Qd2 {[%clk 0:01:12.5]} 13... Be5 {[%clk 0:02:28.2]} 14. Nxe5
{[%clk 0:01:00.7]} 14... Nxe5 {[%clk 0:02:30.1]} 15. d6 {[%clk 0:00:58.6]} 15...
Qd7 {[%clk 0:02:24.5]} 16. Bxc5 {[%clk 0:00:52.1]} 16... Ne4 {[%clk 0:02:03]}
17. Nxe4 {[%clk 0:00:48]} 17... Bxe4 {[%clk 0:02:04.2]} 18. Qe3 {[%clk
0:00:47.4]} 18... Rac8 {[%clk 0:01:40.2]} 19. Rfd1 {[%clk 0:00:24.7]} 19... Rxc5
{[%clk 0:01:37.5]} 20. Qd4 {[%clk 0:00:24.3]} 20... b6 {[%clk 0:01:35.3]} 21.
Qxe4 {[%clk 0:00:23.8]} 21... Qc6 {[%clk 0:01:30.1]} 22. Qxc6 {[%clk 0:00:16.2]}
22... Rxc6 {[%clk 0:01:29.4]} 23. Rac1 {[%clk 0:00:07.3]} 23... Rd8 {[%clk
0:01:27.2]} 0

[Event "Open Nuevo Centro. Jornada 1"]
[Site "Chess.com"]
[Date "2020.06.19"]
[Round "3"]
[White "Donate Peris, Jose Manuel"]
[Black "M�ndez Gim�nez , N�stor Emmanuel"]
[Result "1-0"]
[WhiteElo "1592"]
[BlackElo "1144"]
[TimeControl "180+2"]
[EndTime "11:01:35 PDT"]
[Termination "Victoria de cheryme por jaque mate"]

1. d4 {[%clk 0:03:01.9]} 1... e6 {[%clk 0:02:58.3]} 2. e4 {[%clk 0:03:01.1]}
2... d5 {[%clk 0:02:58.2]} 3. e5 {[%clk 0:02:59.6]} 3... c5 {[%clk 0:02:56.1]}
4. c3 {[%clk 0:03:00.4]} 4... Nc6 {[%clk 0:02:56.3]} 5. Nf3 {[%clk 0:02:59.7]}
5... Qb6 {[%clk 0:02:56.6]} 6. Qb3 {[%clk 0:02:56.4]} 6... cxd4 {[%clk
0:02:48.3]} 7. Qxb6 {[%clk 0:02:55.2]} 7... axb6 {[%clk 0:02:47.4]} 8. cxd4
{[%clk 0:02:56]} 8... f6 {[%clk 0:02:47.4]} 9. Bf4 {[%clk 0:02:53.3]} 9... Bb4+
{[%clk 0:02:43.9]} 10. Nc3 {[%clk 0:02:53]} 10... fxe5 {[%clk 0:02:43]} 11. Bxe5
{[%clk 0:02:48.4]} 11... Nxe5 {[%clk 0:02:42.7]} 12. Nxe5 {[%clk 0:02:48.1]}
12... Nf6 {[%clk 0:02:42.8]} 13. a3 {[%clk 0:02:47.3]} 13... O-O {[%clk
0:02:40.7]} 14. Bd3 {[%clk 0:02:36.2]} 14... Ne4 {[%clk 0:02:37.6]} 15. Bxe4
{[%clk 0:02:34.9]} 15... dxe4 {[%clk 0:02:37.4]} 16. O-O {[%clk 0:02:35]} 16...
Bxc3 {[%clk 0:02:38.1]} 17. bxc3 {[%clk 0:02:34.1]} 17... b5 {[%clk 0:02:36]}
18. Rfe1 {[%clk 0:02:31.3]} 18... b6 {[%clk 0:02:35.7]} 19. Rxe4 {[%clk
0:02:27.5]} 19... Bb7 {[%clk 0:02:36.6]} 20. Ree1 {[%clk 0:02:24.4]} 20... Kh8
{[%clk 0:02:34.9]} 21. Nd7 {[%clk 0:02:22.8]} 21... Rfd8 {[%clk 0:02:34.6]} 22.
Nxb6 {[%clk 0:02:22.8]} 22... Ra6 {[%clk 0:02:33.2]} 23. Rxe6 {[%clk 0:02:16.5]}
23... Bd5 {[%clk 0:02:28.2]} 24. Nxd5 {[%clk 0:02:06.7]} 24... Rxe6 {[%clk
0:02:27.7]} 25. Nc7 {[%clk 0:02:07.1]} 25... Rc6 {[%clk 0:02:22]} 26. Nxb5
{[%clk 0:02:06.6]} 26... Rb8 {[%clk 0:02:21.3]} 27. a4 {[%clk 0:02:06.1]} 27...
Ra6 {[%clk 0:02:18.5]} 28. c4 {[%clk 0:02:01.9]} 28... Kg8 {[%clk 0:02:16.6]}
29. f3 {[%clk 0:01:59.6]} 29... Kf7 {[%clk 0:02:13.8]} 30. Kf2 {[%clk
0:02:00.3]} 30... Ke7 {[%clk 0:02:09.8]} 31. Ke3 {[%clk 0:01:57.3]} 31... Kd7
{[%clk 0:02:08.9]} 32. d5 {[%clk 0:01:55.7]} 32... Rc8 {[%clk 0:02:07.8]} 33.
Kd4 {[%clk 0:01:55.3]} 33... g6 {[%clk 0:02:05.2]} 34. c5 {[%clk 0:01:52.7]}
34... Rb8 {[%clk 0:02:02.7]} 35. c6+ {[%clk 0:01:51.3]} 35... Kd8 {[%clk
0:02:02.2]} 36. c7+ {[%clk 0:01:50.5]} 36... Kc8 {[%clk 0:02:01.8]} 37. cxb8=Q+
{[%clk 0:01:51]} 37... Kxb8 {[%clk 0:02:02.6]} 38. Kc5 {[%clk 0:01:49.3]} 38...
Kb7 {[%clk 0:02:02.5]} 39. d6 {[%clk 0:01:47.6]} 39... Rc6+ {[%clk 0:02:03.1]}
40. Kd5 {[%clk 0:01:47.2]} 40... Rc2 {[%clk 0:01:58.7]} 41. Ke6 {[%clk
0:01:42.8]} 41... Kb6 {[%clk 0:01:57.9]} 42. d7 {[%clk 0:01:41.3]} 42... Re2+
{[%clk 0:01:58.4]} 43. Kf7 {[%clk 0:01:40.1]} 43... Rd2 {[%clk 0:01:55.2]} 44.
Ke8 {[%clk 0:01:37.1]} 44... Re2+ {[%clk 0:01:54.6]} 45. Kd8 {[%clk 0:01:36.9]}
45... Kb7 {[%clk 0:01:53.7]} 46. Nd6+ {[%clk 0:01:35.9]} 46... Kb8 {[%clk
0:01:52]} 47. Rb1+ {[%clk 0:01:35.2]} 47... Ka8 {[%clk 0:01:48.7]} 48. Kc7
{[%clk 0:01:29.1]} 48... Rc2+ {[%clk 0:01:49.1]} 49. Kb6 {[%clk 0:01:28.8]}
49... Rxg2 {[%clk 0:01:44.4]} 50. d8=Q# {[%clk 0:01:27.4]} 1

[Event "Open Nuevo Centro. Jornada 1"]
[Site "Chess.com"]
[Date "2020.06.19"]
[Round "3"]
[White "Bosch Jord�, Ricard"]
[Black "M�s Ripoll, Vicente"]
[Result "1-0"]
[WhiteElo "1610"]
[BlackElo "1108"]
[TimeControl "180+2"]
[EndTime "11:01:45 PDT"]
[Termination "Victoria de UltimateLimo por jaque mate"]

1. e4 {[%clk 0:02:51.1]} 1... c5 {[%clk 0:02:59.8]} 2. Nf3 {[%clk 0:02:47.8]}
2... e6 {[%clk 0:02:59.8]} 3. d4 {[%clk 0:02:46.2]} 3... cxd4 {[%clk 0:02:59.7]}
4. Nxd4 {[%clk 0:02:48.1]} 4... Nc6 {[%clk 0:03:00.2]} 5. Nc3 {[%clk 0:02:33.5]}
5... h6 {[%clk 0:02:53.7]} 6. g3 {[%clk 0:02:28.8]} 6... Nf6 {[%clk 0:02:47.8]}
7. Bg2 {[%clk 0:02:27.2]} 7... Be7 {[%clk 0:02:24.1]} 8. O-O {[%clk 0:01:49.9]}
8... O-O {[%clk 0:02:23.8]} 9. Be3 {[%clk 0:01:32]} 9... Re8 {[%clk 0:02:22]}
10. h3 {[%clk 0:01:26.6]} 10... Bf8 {[%clk 0:02:20.7]} 11. Qd2 {[%clk 0:01:08]}
11... Kh7 {[%clk 0:02:18.3]} 12. Rad1 {[%clk 0:01:06.6]} 12... Ng8 {[%clk
0:02:17]} 13. Nxc6 {[%clk 0:01:04.1]} 13... bxc6 {[%clk 0:02:15.2]} 14. e5
{[%clk 0:01:03.9]} 14... Bb7 {[%clk 0:01:56.3]} 15. Qd3+ {[%clk 0:00:54.2]}
15... Kh8 {[%clk 0:01:46.9]} 16. f4 {[%clk 0:00:47.5]} 16... Rc8 {[%clk
0:01:35.7]} 17. f5 {[%clk 0:00:47.2]} 17... exf5 {[%clk 0:01:32.9]} 18. Qxf5
{[%clk 0:00:47.1]} 18... Qe7 {[%clk 0:01:20.9]} 19. Be4 {[%clk 0:00:45.2]} 19...
g6 {[%clk 0:01:13.7]} 20. Qxf7 {[%clk 0:00:41]} 20... Qxf7 {[%clk 0:01:13]} 21.
Rxf7 {[%clk 0:00:38.3]} 21... Re7 {[%clk 0:01:09.6]} 22. Rdf1 {[%clk 0:00:34.3]}
22... Rxe5 {[%clk 0:01:01.5]} 23. Bxg6 {[%clk 0:00:31.7]} 23... Re7 {[%clk
0:00:47.3]} 24. Bd4+ {[%clk 0:00:29.1]} 24... Bg7 {[%clk 0:00:38.3]} 25. Bxg7#
{[%clk 0:00:29.4]} 1

[Event "Open Nuevo Centro. Jornada 1"]
[Site "Chess.com"]
[Date "2020.06.19"]
[Round "3"]
[White "Fern�ndez Martin, Carlos"]
[Black "Luque Saiz, Andres"]
[Result "0-1"]
[WhiteElo "1220"]
[BlackElo "1705"]
[TimeControl "180+2"]
[EndTime "11:02:04 PDT"]
[Termination "Victoria de Chuch1n por tiempo"]

1. e4 {[%clk 0:03:01.9]} 1... c6 {[%clk 0:02:59.1]} 2. Nc3 {[%clk 0:03:00.7]}
2... d5 {[%clk 0:03:01]} 3. Nf3 {[%clk 0:02:56.3]} 3... Bg4 {[%clk 0:03:00.1]}
4. h3 {[%clk 0:02:55.2]} 4... Bxf3 {[%clk 0:03:00.6]} 5. Qxf3 {[%clk 0:02:55.1]}
5... Nf6 {[%clk 0:03:00.9]} 6. e5 {[%clk 0:02:55.3]} 6... Nfd7 {[%clk
0:03:00.8]} 7. d4 {[%clk 0:02:53.3]} 7... e6 {[%clk 0:03:01.2]} 8. Bd3 {[%clk
0:02:50.8]} 8... c5 {[%clk 0:03:01.6]} 9. Be3 {[%clk 0:02:45.1]} 9... Nc6 {[%clk
0:03:01.7]} 10. dxc5 {[%clk 0:02:38.9]} 10... Ncxe5 {[%clk 0:03:00]} 11. Qe2
{[%clk 0:02:33.5]} 11... Nc6 {[%clk 0:02:54.9]} 12. Bf4 {[%clk 0:01:53]} 12...
Nxc5 {[%clk 0:02:49.2]} 13. Rd1 {[%clk 0:01:42.9]} 13... Nxd3+ {[%clk
0:02:44.2]} 14. Rxd3 {[%clk 0:01:42.3]} 14... Bb4 {[%clk 0:02:40.3]} 15. O-O
{[%clk 0:01:37]} 15... O-O {[%clk 0:02:34.1]} 16. Qg4 {[%clk 0:01:30.1]} 16...
f5 {[%clk 0:02:26.3]} 17. Qg3 {[%clk 0:01:22.7]} 17... Qf6 {[%clk 0:02:20.1]}
18. Nb5 {[%clk 0:00:54]} 18... h6 {[%clk 0:02:07.8]} 19. Nc7 {[%clk 0:00:33.3]}
19... Rac8 {[%clk 0:02:06.1]} 20. c3 {[%clk 0:00:32.1]} 20... Bc5 {[%clk
0:02:02]} 21. Re1 {[%clk 0:00:18.7]} 21... Nd8 {[%clk 0:01:25.7]} 22. Be5 {[%clk
0:00:14]} 22... Qf7 {[%clk 0:01:24.5]} 23. Rdd1 {[%clk 0:00:07.7]} 23... Kh7
{[%clk 0:01:21.7]} 24. b4 {[%clk 0:00:07]} 24... Bb6 {[%clk 0:01:21.3]} 25. Nb5
{[%clk 0:00:05.3]} 25... Rc6 {[%clk 0:01:03.3]} 26. Nd6 {[%clk 0:00:06.2]} 26...
Qg6 {[%clk 0:01:03.4]} 27. Qf3 {[%clk 0:00:04.2]} 27... Bc7 {[%clk 0:00:58]} 0

[Event "Open Nuevo Centro. Jornada 1"]
[Site "Chess.com"]
[Date "2020.06.19"]
[Round "3"]
[White "Lopez Mateo, Juan Carlos"]
[Black "Granero Roca, Antonio"]
[Result "0-1"]
[WhiteElo "1931"]
[BlackElo "2524"]
[TimeControl "180+2"]
[EndTime "11:02:05 PDT"]
[Termination "Victoria de Somtor por tiempo"]

1. e4 {[%clk 0:03:00]} 1... c6 {[%clk 0:03:00.2]} 2. Ne2 {[%clk 0:03:00.7]} 2...
d6 {[%clk 0:02:59.5]} 3. e5 {[%clk 0:03:02.3]} 3... dxe5 {[%clk 0:02:59.5]} 4.
Nbc3 {[%clk 0:03:02.7]} 4... Nf6 {[%clk 0:02:59.8]} 5. g3 {[%clk 0:03:03.2]}
5... Bf5 {[%clk 0:02:59.9]} 6. d3 {[%clk 0:02:45.6]} 6... e6 {[%clk 0:02:59.4]}
7. Bg2 {[%clk 0:02:42.6]} 7... Nbd7 {[%clk 0:02:59.7]} 8. O-O {[%clk 0:02:41.7]}
8... Qc7 {[%clk 0:02:58.7]} 9. a4 {[%clk 0:02:27.2]} 9... a5 {[%clk 0:02:58.1]}
10. h3 {[%clk 0:02:20.3]} 10... Bg6 {[%clk 0:02:58.6]} 11. f4 {[%clk 0:02:03.6]}
11... exf4 {[%clk 0:02:56.5]} 12. Nxf4 {[%clk 0:01:58.1]} 12... Bd6 {[%clk
0:02:53.9]} 13. Qe1 {[%clk 0:01:34.4]} 13... O-O {[%clk 0:02:50.5]} 14. g4
{[%clk 0:01:28.8]} 14... Nd5 {[%clk 0:02:44]} 15. Nxg6 {[%clk 0:01:24.9]} 15...
hxg6 {[%clk 0:02:43.8]} 16. Ne4 {[%clk 0:01:20.9]} 16... Be7 {[%clk 0:02:37.4]}
17. Bd2 {[%clk 0:01:13.6]} 17... Nc5 {[%clk 0:02:36.2]} 18. Kh1 {[%clk
0:00:43.6]} 18... Nxe4 {[%clk 0:02:34.1]} 19. Qxe4 {[%clk 0:00:39.1]} 19... Rad8
{[%clk 0:02:27.8]} 20. Rae1 {[%clk 0:00:39.3]} 20... Bb4 {[%clk 0:02:14.1]} 21.
c3 {[%clk 0:00:33.6]} 21... Be7 {[%clk 0:02:14.2]} 22. d4 {[%clk 0:00:27.2]}
22... Nb6 {[%clk 0:01:56.8]} 23. b3 {[%clk 0:00:22.5]} 23... Nd5 {[%clk
0:01:51.8]} 24. Rf3 {[%clk 0:00:16.8]} 24... c5 {[%clk 0:01:46.1]} 25. dxc5
{[%clk 0:00:10.3]} 25... Qxc5 {[%clk 0:01:44]} 26. Re2 {[%clk 0:00:07.9]} 26...
b6 {[%clk 0:01:42.2]} 27. h4 {[%clk 0:00:08.5]} 27... Nf6 {[%clk 0:01:39.5]} 28.
Qc2 {[%clk 0:00:07.5]} 28... Nxg4 {[%clk 0:01:36.8]} 29. Bh3 {[%clk 0:00:07.3]}
29... Qh5 {[%clk 0:01:30.8]} 30. Be1 {[%clk 0:00:03.7]} 30... Bxh4 {[%clk
0:01:24.3]} 31. Rf4 {[%clk 0:00:03.4]} 31... Bxe1 {[%clk 0:01:20.1]} 32. Rxg4
{[%clk 0:00:02.3]} 32... Qxh3+ {[%clk 0:01:19.7]} 0